Cogmind - Beta 14 @@@ ROGUE MODE // 2024.11.18 @ 06:04:16 Player: Inverisimilidude Result: Destroyed by S-27 Virus with Autogun Performance ------------- Evolutions (4) 2000 Regions Visited (8) 1600 Robots Destroyed (16) 80 Value Destroyed (368) 368 Prototype IDs (2) 40 Alien Tech Used (0) 0 Bonus (600) 600 TOTAL SCORE: 4688 Bonus ------- Follower Combat Kills 626 Friendly Fire -26 Cogmind --------- Core Integrity 0/850 Matter 300/300 Energy 74/100 System Corruption 0% Temperature Cool (0) Movement Core (50) Location -6/Factory Parts ------- > --- POWER (1) -------- (None) > --- PROPULSION (7) --- (None) > --- UTILITY (5) ------ (None) > --- WEAPON (2) ------- (None) > --- INVENTORY (5) ---- Medium Matter Pod (100) Machine Analyzer Improved Targeting Computer Hardened Light Armor Plating Grenade Launcher Peak State ------------ > --- POWER ------------ Backup Power III > --- PROPULSION ------- Backup Propulsion III Backup Propulsion III > --- UTILITY ---------- Spectral Analyzer Backup Plating III Backup Plating III > --- WEAPON ----------- Backup Laser III Backup Laser III > --- INVENTORY -------- Medium Matter Pod Machine Analyzer Improved Targeting Computer Hardened Light Armor Plating Grenade Launcher [Rating: 30] Favorites ----------- Power Ion Engine Engine Ion Engine Propulsion Aluminum Leg Leg Aluminum Leg Hover Unit Backup Propulsion III Utility Small Storage Unit Device Heat Sink Storage Small Storage Unit Processor Visual Processing Unit Protection Backup Plating III Weapon Backup Laser III Energy Gun Backup Laser III Ballistic Gun Assault Rifle Launcher Missile Launcher Build | -11 -10 -9 -9 -8 -7 -6 -6 -6 ------- Run | Yrd Mat Mat Min Mat Fac Fac Was Fac Slots Evolved 8 | . . 2 . 2 2 2 . . Power . | . . . . . . . . . Propulsion 5 | . . 1 . 1 1 2 . . Utility 3 | . . 1 . 1 1 . . . Weapon . | . . . . . . . . . Parts Attached 20 | 6 4 8 . . . . 1 1 Power 4 | 2 . 2 . . . . . . Engine 4 | 2 . 2 . . . . . . Core . | . . . . . . . . . Reactor . | . . . . . . . . . Propulsion 4 | 2 . 2 . . . . . . Treads . | . . . . . . . . . Leg 4 | 2 . 2 . . . . . . Wheel . | . . . . . . . . . Hover . | . . . . . . . . . Flight . | . . . . . . . . . Utility 6 | 1 2 1 . . . . 1 1 Device 2 | . 1 . . . . . . 1 Storage 1 | 1 . . . . . . . . Processor 2 | . 1 . . . . . 1 . Hackware . | . . . . . . . . . Protection 1 | . . 1 . . . . . . Artifact . | . . . . . . . . . Weapon 6 | 1 2 3 . . . . . . Energy Gun 1 | . 1 . . . . . . . Energy Cannon . | . . . . . . . . . Ballistic Gun 3 | 1 1 1 . . . . . . Ballistic Cannon . | . . . . . . . . . Launcher 2 | . . 2 . . . . . . Special Weapon . | . . . . . . . . . Impact Weapon . | . . . . . . . . . Slashing Weapon . | . . . . . . . . . Piercing Weapon . | . . . . . . . . . Special Melee Weapon . | . . . . . . . . . Unidentified Prototypes 2 | . . . . . . . 1 1 Parts Lost 12 | . . 8 . . . . . 4 Power 3 | . . 2 . . . . . 1 Propulsion 4 | . . 3 . . . . . 1 Utility 3 | . . 1 . . . . . 2 Weapon 2 | . . 2 . . . . . . Highest Loss Streak 5 | . . 5 . . . . . 2 To Critical Strikes . | . . . . . . . . . Average Slot Usage (%) 51 | . 91 83 . . . . 45 32 Engine 6 | . 14 10 . . . . 6 3 Leg 11 | . 28 24 . . . . . . Hover 3 | . . . . . . . 12 8 Storage 5 | . 14 10 . . . . . . Processor 4 | . 4 10 . . . . . 2 Protection 5 | . . 6 . . . . 11 7 Energy Gun 3 | . 2 . . . . . 13 8 Ballistic Gun 8 | . 26 15 . . . . . . Launcher 1 | . . 4 . . . . . . Peak Build Rating 30 | 5 9 14 . . . . 30 30 Average Rating 10 | 3 6 10 . . . . 21 18 On Entrance 4 | . 5 9 . . . . . 30 Naked Turns 637 | . . 34 106 170 108 115 4 100 Heaviest Build 23 | 11 14 23 . . . . 10 10 Greatest Support 30 | 20 20 30 3 3 3 3 16 16 Greatest Overweight (x) 2 | 1 . 2 . . . . 1 1 Average Overweight (x) . | . . . . . . . . . Largest Inventory Capacity 8 | 8 8 8 5 5 5 5 5 5 Average Capacity 6 | 7 8 7 5 5 5 5 5 5 Most Carried 8 | 7 8 8 5 5 5 5 5 5 Average Carried 5 | 4 7 7 5 5 5 5 5 5 Final Capacity 8 | 8 8 5 5 5 5 5 5 5 Final Carried 8 | 7 8 5 5 5 5 5 5 5 Class Distribution -------------------- 100% | Mutant Dominant Class ---------------- Mutant | -10/Materials Mutant | -9/Materials Mutant | -9/Mines Mutant | -8/Materials Mutant | -7/Factory Mutant | -6/Factory Mutant | -6/Waste Mutant | -6/Factory Resources | -11 -10 -9 -9 -8 -7 -6 -6 -6 ----------- Run | Yrd Mat Mat Min Mat Fac Fac Was Fac Matter Collected 763 | 220 64 225 139 18 . 6 81 10 Remotely . | . . . . . . . . . Salvage Created 377 | . 64 295 . 18 . . . . Parts 36 | . 5 26 . 5 . . . . Haulers Intercepted 2 | . . 2 . . . . . . Recyclers Shooed . | . . . . . . . . . Parts Field Recycled . | . . . . . . . . . Retrieved Matter . | . . . . . . . . . Parts Self-Destructed . | . . . . . . . . . Prevented . | . . . . . . . . . Kills | -11 -10 -9 -9 -8 -7 -6 -6 -6 ------- Run | Yrd Mat Mat Min Mat Fac Fac Was Fac Combat Hostiles Destroyed 10 | . 2 8 . . . . . . Guns 4 | . 2 2 . . . . . . AOE 6 | . . 6 . . . . . . Classes Destroyed 8 | . 1 7 . . . . . . Tunneler 2 | . . 1 . 1 . . . . Hauler 2 | . . 2 . . . . . . Operator 1 | . . 1 . . . . . . Watcher 1 | . . 1 . . . . . . Swarmer 4 | . . 4 . . . . . . Grunt 3 | . 2 1 . . . . . . Brawler 1 | . . 1 . . . . . . Sentry 2 | . . 2 . . . . . . Best Kill Streak 4 | . 1 4 . 1 . . . . Combat Bots Only 4 | . 1 4 . . . . . . Max Kills in Single Turn 3 | . 1 3 . 1 . . . . Gunslinging . | . . . . . . . . . Exploded 2 | . . 2 . . . . . . Melee . | . . . . . . . . . Uniques/NPCs Destroyed . | . . . . . . . . . Combat | -11 -10 -9 -9 -8 -7 -6 -6 -6 -------- Run | Yrd Mat Mat Min Mat Fac Fac Was Fac Hostile Shots Fired 402 | . 7 77 . 90 60 88 . 80 Missed 159 | . 2 19 . 35 26 48 . 29 Damage Taken 3407 | . 55 1102 . 543 542 497 . 668 Core 2123 | . 22 161 . 543 542 497 . 358 Absorbed by Shields . | . . . . . . . . . Core Remaining (%) 54 | 100 91 . 59 1 22 . . . Volleys Fired 47 | . 5 36 . . . . 1 5 Largest 2 | . 2 2 . . . . 2 2 Hottest 80 | . 40 56 . . . . 80 80 Shots Fired 78 | . 10 56 . . . . 2 10 Gun 58 | . 10 36 . . . . 2 10 Cannon . | . . . . . . . . . Launcher 20 | . . 20 . . . . . . Special . | . . . . . . . . . Kinetic 46 | . 10 36 . . . . . . Thermal 12 | . . . . . . . 2 10 Explosive 20 | . . 20 . . . . . . Electromagnetic . | . . . . . . . . . Robot Hit Streak 9 | . 6 8 . . . . 9 6 Robot Miss Streak 6 | . 1 6 . . . . 1 1 Penetration Max . | . . . . . . . . . Secondary Targets 1 | . . 1 . . . . . . Max Gunslinging Chain 1 | . . 1 . . . . . . Shots Hit Robots 41 | . 7 24 . . . . 1 9 Core Hits 26 | . 3 19 . 1 . . . 3 Critical Kills . | . . . . . . . . . Critical Parts Destroyed . | . . . . . . . . . Critical Strikes . | . . . . . . . . . Melee Attacks . | . . . . . . . . . Impact . | . . . . . . . . . Slashing . | . . . . . . . . . Piercing . | . . . . . . . . . Sneak Attacks . | . . . . . . . . . Combat Hostiles . | . . . . . . . . . Follow-up Attacks . | . . . . . . . . . Damage Inflicted 1048 | . 75 810 . 21 . . 26 116 Guns 413 | . 75 198 . . . . 26 114 Cannons . | . . . . . . . . . Explosions 606 | . . 606 . . . . . . Melee . | . . . . . . . . . Ramming 29 | . . 6 . 21 . . . 2 Kinetic 273 | . 75 198 . . . . . . Thermal 140 | . . . . . . . 26 114 Explosive 606 | . . 606 . . . . . . Electromagnetic . | . . . . . . . . . Impact . | . . . . . . . . . Slashing . | . . . . . . . . . Piercing . | . . . . . . . . . Highest Corruption . | . . . . . . . . . Average Corruption . | . . . . . . . . . Corruption Purged . | . . . . . . . . . Corruption Blocked . | . . . . . . . . . Overload Shots . | . . . . . . . . . Overflow Damage 36 | . . 36 . . . . . . Projectiles . | . . . . . . . . . Explosions 36 | . . 36 . . . . . . Melee . | . . . . . . . . . Knockbacks . | . . . . . . . . . Impact . | . . . . . . . . . Kinetic . | . . . . . . . . . Secondary . | . . . . . . . . . Self-Inflicted Damage 309 | . . 299 . 9 . . . 1 Shots 8 | . . 8 . . . . . . Rammed 6 | . . . . 4 . . . 2 Targets Rammed 7 | . . 1 . 4 . . . 2 Kicked 1 | . . 1 . . . . . . Crushed . | . . . . . . . . . Highest Temperature 42 | . 6 42 . . . . . . Average Temperature 14 | . 6 15 . . . . . . Received Heat Transfer 513 | . 30 318 . 54 18 60 . 33 Siege Activations . | . . . . . . . . . Robots Corrupted . | . . . . . . . . . Combat Hostiles . | . . . . . . . . . Parts Fried . | . . . . . . . . . Impact Corruptions . | . . . . . . . . . Robots Melted . | . . . . . . . . . Combat Hostiles . | . . . . . . . . . Parts Melted . | . . . . . . . . . Heat Transferred 407 | . . . . . . . 74 333 Parts Sabotaged . | . . . . . . . . . Parts Stolen . | . . . . . . . . . Parts Stripped . | . . . . . . . . . Power Chain Reactions . | . . . . . . . . . Alert | -11 -10 -9 -9 -8 -7 -6 -6 -6 ------- Run | Yrd Mat Mat Min Mat Fac Fac Was Fac Peak Influence 773 | . 111 243 105 265 285 184 64 773 Initial 139 | . . 46 90 40 120 139 64 44 Average 128 | . 50 125 104 119 188 157 64 239 Maximum Alert Level 3 | . . 1 . 1 1 . . 3 Low Security (%) 79 | 100 100 69 100 87 60 100 100 59 Level 1 15 | . . 30 . 12 39 . . 15 Level 2 3 | . . . . . . . . 20 Level 3 . | . . . . . . . . 3 Level 4 . | . . . . . . . . . Level 5 . | . . . . . . . . . High Security . | . . . . . . . . . Max Security . | . . . . . . . . . Squads Dispatched 12 | . 2 1 . 3 . . . 6 Investigation 2 | . 1 . . 1 . . . . Extermination 1 | . . . . . . . . 1 Reinforcement 8 | . 1 1 . 2 . . . 4 Assault . | . . . . . . . . . Garrison 1 | . . . . . . . . 1 Intercept . | . . . . . . . . . Searches Triggered . | . . . . . . . . . Construction Impeded 2 | . . . . . . . . 2 Haulers Reinforced . | . . . . . . . . . Active Scanning Responses . | . . . . . . . . . Cargo Convoy Interrupts . | . . . . . . . . . Stealth | -11 -10 -9 -9 -8 -7 -6 -6 -6 --------- Run | Yrd Mat Mat Min Mat Fac Fac Was Fac Distress Signals 7 | . 1 2 . . . . . 4 Communications Jammed . | . . . . . . . . . Distress Signals . | . . . . . . . . . Times Spotted 94 | . 5 18 2 21 15 8 . 25 Peak Tracking Total 17 | . 2 6 2 17 6 7 . 7 Tactical Retreats 9 | . . . . 3 4 1 . 1 Traps | -11 -10 -9 -9 -8 -7 -6 -6 -6 ------- Run | Yrd Mat Mat Min Mat Fac Fac Was Fac Traps Triggered 7 | . 1 . . 2 . 2 . 2 Indirectly . | . . . . . . . . . Trap Hack Attempts . | . . . . . . . . . Triggered . | . . . . . . . . . Disarmed . | . . . . . . . . . Reprogrammed . | . . . . . . . . . Reused . | . . . . . . . . . Traps Extracted . | . . . . . . . . . Installed . | . . . . . . . . . Triggered . | . . . . . . . . . Machines | -11 -10 -9 -9 -8 -7 -6 -6 -6 ---------- Run | Yrd Mat Mat Min Mat Fac Fac Was Fac Machines Disabled 5 | . . 4 . . . . . 1 Max in Single Turn 1 | . . 1 . . . . . . Machines Repaired . | . . . . . . . . . Machines Dismantled . | . . . . . . . . . Machines Sabotaged . | . . . . . . . . . Overloaded Fab Kills . | . . . . . . . . . Hacking | -11 -10 -9 -9 -8 -7 -6 -6 -6 --------- Run | Yrd Mat Mat Min Mat Fac Fac Was Fac Machines Accessed 2 | . 1 . . 1 . . . . Terminals 2 | . 1 . . 1 . . . . Fabricators . | . . . . . . . . . Repair Stations . | . . . . . . . . . Recycling Units . | . . . . . . . . . Scanalyzers . | . . . . . . . . . Garrison Access . | . . . . . . . . . Total Hacks 4 | . 1 . . 3 . . . . Successful 3 | . 1 . . 2 . . . . Failed 1 | . . . . 1 . . . . Catastrophic . | . . . . . . . . . Database Lockouts . | . . . . . . . . . Manual 2 | . 1 . . 1 . . . . Terminals 4 | . 1 . . 3 . . . . Fabricators . | . . . . . . . . . Repair Stations . | . . . . . . . . . Recycling Units . | . . . . . . . . . Scanalyzers . | . . . . . . . . . Garrison Access . | . . . . . . . . . Terminal Hacks 1 | . . . . 1 . . . . Robot Analysis 1 | . . . . 1 . . . . Fabricator Hacks . | . . . . . . . . . Repair Station Hacks . | . . . . . . . . . Recycling Unit Hacks . | . . . . . . . . . Scanalyzer . | . . . . . . . . . Garrison Access Hacks . | . . . . . . . . . Unauthorized Hacks 2 | . 1 . . 1 . . . . Terminals 2 | . 1 . . 1 . . . . Assimilate 1 | . 1 . . . . . . . Botnet 1 | . . . . 1 . . . . Fabricators . | . . . . . . . . . Repair Stations . | . . . . . . . . . Recycling Units . | . . . . . . . . . Scanalyzers . | . . . . . . . . . Garrison Access . | . . . . . . . . . Data Cores Recovered . | . . . . . . . . . Used . | . . . . . . . . . Hacking Detections . | . . . . . . . . . Full Trace Events . | . . . . . . . . . Feedback Events . | . . . . . . . . . Feedback Blocked . | . . . . . . . . . Robot Schematics Acquired . | . . . . . . . . . Robots Built . | . . . . . . . . . Authchips . | . . . . . . . . . Time . | . . . . . . . . . Total Robot Build Rating . | . . . . . . . . . Part Schematics Acquired . | . . . . . . . . . Parts Built . | . . . . . . . . . Authchips . | . . . . . . . . . Time . | . . . . . . . . . Total Part Build Rating . | . . . . . . . . . Parts Repaired . | . . . . . . . . . Time . | . . . . . . . . . Parts Recycled . | . . . . . . . . . Recycled Matter . | . . . . . . . . . Retrieved Matter . | . . . . . . . . . Retrieved Components . | . . . . . . . . . Parts Scanalyzed . | . . . . . . . . . Part Schematics Acquired . | . . . . . . . . . Parts Damaged . | . . . . . . . . . Bothacking | -11 -10 -9 -9 -8 -7 -6 -6 -6 ------------ Run | Yrd Mat Mat Min Mat Fac Fac Was Fac Used RIF Installer . | . . . . . . . . . Robots Hacked . | . . . . . . . . . Non-combat . | . . . . . . . . . Combat . | . . . . . . . . . Robot Hacks Applied . | . . . . . . . . . Relay Couplers Released . | . . . . . . . . . Fabnet Peak Effective % . | . . . . . . . . . Robots Rewired . | . . . . . . . . . Allies Hacked . | . . . . . . . . . Hacks Repelled . | . . . . . . . . . Allies | -11 -10 -9 -9 -8 -7 -6 -6 -6 -------- Run | Yrd Mat Mat Min Mat Fac Fac Was Fac Total Allies 21 | . 1 . . . . . 20 . Largest Group 20 | . 1 . . . . . 20 20 Highest-Rated Group 731 | . 10 . . . . . 731 729 Highest-Rated Ally 46 | . 10 . . . . . 46 46 Total Orders 1 | . 1 . . . . . . . STAY 1 | . 1 . . . . . . . Ally Attacks 166 | . . . . . . . . 166 Total Damage 3212 | . . . . . . . . 3212 Kills 25 | . . . . . . . . 25 Allies Corrupted 1 | . . . . . . . . 1 Allies Melted . | . . . . . . . . . Intel | -11 -10 -9 -9 -8 -7 -6 -6 -6 ------- Run | Yrd Mat Mat Min Mat Fac Fac Was Fac Robot Analysis Total 1 | . . . . 1 . . . . Derelict Logs Recovered 1 | . . . 1 . . . . . Drone Launches . | . . . . . . . . . Drone Recoveries . | . . . . . . . . . Exploration | -11 -10 -9 -9 -8 -7 -6 -6 -6 ------------- Run | Yrd Mat Mat Min Mat Fac Fac Was Fac Turns Passed 2325 | 86 275 749 106 170 108 115 289 427 Spaces Moved 2472 | 64 148 493 180 309 214 229 312 523 Core 1265 | 9 . 71 180 309 214 229 4 249 Treads . | . . . . . . . . . Legs 625 | 55 148 422 . . . . . . Wheels . | . . . . . . . . . Hover 582 | . . . . . . . 308 274 Flight . | . . . . . . . . . Fastest Speed 50 | 50 120 50 50 50 50 50 50 50 Average Speed 77 | 111 120 126 50 50 50 50 76 66 Slowest Speed 190 | 120 120 190 50 50 50 50 100 100 Overloaded Moves . | . . . . . . . . . Propulsion Burnouts . | . . . . . . . . . Robots Hopped . | . . . . . . . . . Cave-ins Triggered . | . . . . . . . . . Exploration Rate (%) 29 | 5 20 32 39 46 10 10 87 18 Regions Visited 8 Branch Regions 1 Pre-discovered Areas . | . . . . . . . . . Known Exits Taken . | . . . . . . . . . Unknown Exits Taken 6 | 1 1 1 1 1 1 . . . Scrap Searched 1 | . . . 1 . . . . . Spaces Dug 45 | . . 45 . . . . . . Terrain Destroyed 160 | . . 160 . . . . . . Melee . | . . . . . . . . . Projectile . | . . . . . . . . . AOE 160 | . . 160 . . . . . . Terrain Rammed . | . . . . . . . . . Walls Destroyed . | . . . . . . . . . Machines Disabled . | . . . . . . . . . Actions | -11 -10 -9 -9 -8 -7 -6 -6 -6 --------- Run | Yrd Mat Mat Min Mat Fac Fac Was Fac Total 2787 | 75 238 562 195 323 214 229 360 591 Wait 218 | . 70 15 16 11 1 . 45 60 Move 2465 | 63 147 492 179 308 213 229 311 523 Hop . | . . . . . . . . . Pick Up 18 | 6 7 5 . . . . . . Fast Attach 9 | 5 1 1 . . . . 1 1 Attach 5 | . 1 4 . . . . . . Detach . | . . . . . . . . . Swap 6 | 1 2 3 . . . . . . Drop 10 | . 5 5 . . . . . . Fire 47 | . 5 36 . . . . 1 5 Melee . | . . . . . . . . . Ram 6 | . . . . 4 . . . 2 Kick 1 | . . 1 . . . . . . Crush . | . . . . . . . . . Escape Stasis . | . . . . . . . . . Rewire 2 | . . . . . . . 2 . Trap . | . . . . . . . . . Miscellaneous . | . . . . . . . . . Route ------- -11/Scrapyard -10/Materials -9/Materials -9/Mines -8/Materials (discovered 2 exits: [*Fac] / *Sto) -7/Factory -6/Factory -6/Waste -6/Factory History --------- Turn | Location | Event 18 | -11/Scrapyard | Discovered new exit (range 15) 87 | -11/Scrapyard | Entered Materials 272 | -10/Materials | Discovered new exit (range 16) 306 | -10/Materials | Build established: Mutant 362 | -10/Materials | Entered another Materials area 362 | -9/Materials | Evolved 2 slots: Propulsion x1, Utility x1 876 | -9/Materials | Lost 5 parts (1p2n1u1w) 1077 | -9/Materials | Released all parts (3) 1104 | -9/Materials | Lost 3 parts (1p1n1w) 1107 | -9/Materials | Discovered new exit (range 8) 1111 | -9/Materials | Entered Mines 1112 | -9/Mines | Learned 2 Materials zone layouts 1113 | -9/Mines | Joined a pair of Derelicts in attacking an 0b10 outpost 1214 | -9/Mines | Discovered new exit (range 8) 1217 | -9/Mines | Entered Materials 1217 | -8/Materials | Evolved 2 slots: Propulsion x1, Utility x1 1218 | -8/Materials | Identified exit to Storage 1344 | -8/Materials | Core integrity fell below 50% 1368 | -8/Materials | Core integrity fell below 20% 1368 | -8/Materials | Discovered new exit (range 16) 1387 | -8/Materials | Entered Factory 1387 | -7/Factory | Evolved 2 slots: Propulsion x1, Utility x1 1474 | -7/Factory | Core integrity fell below 50% 1484 | -7/Factory | Discovered new exit (range 16) 1495 | -7/Factory | Entered another Factory area 1495 | -6/Factory | Evolved 2 slots: Propulsion x2 1601 | -6/Factory | Core integrity fell below 50% 1610 | -6/Factory | Sucked down chute 1610 | -6/Factory | Entered Waste 1611 | -6/Waste | Joined by Warlord forces that had cleared the area 1850 | -6/Waste | Found Prototype Processor 1850 | -6/Waste | Identified Spectral Analyzer 1859 | -6/Waste | Discovered new exit (range 23) 1899 | -6/Waste | Entered Factory 1899 | -6/Factory | Accompanied by 20 allies 2006 | -6/Factory | Lost 3 allies 2116 | -6/Factory | Lost 4 allies 2142 | -6/Factory | Released all parts (5) 2188 | -6/Factory | Released all parts (1) 2248 | -6/Factory | Core integrity fell below 20% 2271 | -6/Factory | Released all parts (4) 2286 | -6/Factory | Found Prototype Device 2286 | -6/Factory | Identified Active Sensor Suite 2299 | -6/Factory | Garrison activated, responded to threat 2326 | -6/Factory | Destroyed by S-27 Virus with Autogun Last Messages --------------- 02303_ U-05 Engineer lays Concrete. 02303_ C-17 Slicer destroyed. 02303_ Knocked back. 02304_ U-05 Engineer lays Concrete. 02304_ 2E-GUD(g) destroyed. 02304_ J3-KS0(s) Hvy. Battle Rifle severed. 02305_ U-05 Engineer lays Concrete. 02305_ K-01 Serf collects debris. 02306_ U-05 Engineer lays Concrete. 02307_ K-01 Serf collects debris. 02308_ U-05 Engineer lays Concrete. 02309_ K-01 Serf collects debris. 02309_ U-05 Engineer lays Concrete. 02311_ The unstable cave ceiling collapses. 02311_ U-05 Engineer lays Concrete. 02312_ K-01 Serf collects debris. 02313_ U-05 Engineer lays Concrete. 02314_ K-01 Serf collects debris. 02314_ U-05 Engineer lays Concrete. 02318_ Active Sensor Suite destroyed. Map ----- +----------------------------------------------------+ | ?????????????????????????????????????????????????? | | ?????????????????????????????????????????????????? | | ?????????????????????????????????????????????????? | | ?????????????????????????????????????????????????? | | ?????????????????????????????????????????????????? | | ?????????????????????????????????????????????????? | | ?????????????????????????????????????????????????? | | ?????????????????????????????????????????????????? | | ?????????????????????????????????????????????????? | | ?????????????????????????????????????????????????? | | ?????????????????????????????????????????????????? | | ?????????????????????????????????????????????????? | | ?????????????????????????????????????????????????? | | ?????????????????????????????????????????????????? | | ??????????????????????####???????????????????????? | | ?????????????????????? ???????????????????????? | | ?????????????????????"" ???????????????????????? | | ??????????????????? """ = #??????????????????????? | | ?????????????????"? """ #??????????????????????? | | ????????????????? #??????????????????????? | | ????????????????""" """ #?????+### ????????????? | | ?????????????# """ """ #???? ???????????? | | ?????????????# """ """ #?? ???????????? | | ?????????????# #?? ??????????? | | ?????????????# #?? ??????????? | | ?????????????# @#?? ????????????? | | ?????????????# [ #?# #??????????????? | | ?????????????############s### #??????????????? | | ?????????????????????# #??????????????? | | ?????????????######### #??????????????? | | ?????????? #??????????????? | | ????################## #??????????????? | | ????# #???????# #??????????????? | | ????# ! ###########+#/## #??????????????? | | ????# # s # #??????????????? | | ??### # # #??????????????? | | ?? # # + #??????????????? | | ??# # = !# # #??????????????? | | ??# # # # #??????????????? | | ??# # ! # # #??????????????? | | ??# # !!################ #??????????????? | | ### ##### # ## ########### #??????????????? | | # * |%%! %=% #??????????????? | | # !=/ *! *%! *%= +??????????????? | | # *%*=[ %=% #??????????????? | | # =%/%[ %[ =!* #??????????????? | | !=[% ! %[ #??????????????? | | %##### ######+######" ########??????????????? | | #?? ?# *[= ##"T#?????????????????????? | | #? """ ?# """"= #####?????????????????????? | +----------------------------------------------------+ Best States ------------- Heat Dissipation 37 Energy Generation 11 Energy Capacity 250 Matter Stores 300 Matter Capacity 300 Sight Range 24 Robot Scan Range 20 Terrain Scan Density 10 Armor Coverage 160 Evasion (%) 55 Item Schematics ----------------- None Robot Schematics ------------------ None Fabricated ------------ Nothing Alien Tech Used ----------------- None Achievements -------------- None Challenges ------------ None Game ------ Seed ThrowingTiamatDisintegrator Manual? 0 Play Time 00:26:44 Cumulative 34.5 hours Start 2024.11.18 @ 05:38:37 End 2024.11.18 @ 06:04:16 Sessions 1 Manual Loads 0 Difficulty Rogue Special Mode None Game No. 42 Rogue 42 Adventurer 0 Explorer 0 Win Type - Total 0 Types 0/0/0/0/0/0/0/0/0 Lore% 20 Gallery% 28 Achievement% 27 Wizard Run 0 Options --------- Layout 1 ASCII 0 Keyboard 1 Movement Arrows Keybinds 0 Fullscreen 1 Font 24/Smallcaps Map View 50x35 Zoom Use 0% Tactical HUD 1 Map Filters NONE Filters NONE Steam 1 RUN: 5ce9d176-f0bf-49ab-9d08-c508e325ae0d